Cogmind - Beta 14 @@@ ROGUE MODE // 2024.09.06 @ 11:59:00 Player: FreshFromage Result: Destroyed by Y-45 Defender with Heavy Assault Rifle Performance ------------- Evolutions (1) 500 Regions Visited (4) 800 Robots Destroyed (118) 590 Value Destroyed (2935) 2935 Prototype IDs (4) 80 Alien Tech Used (0) 0 Bonus (466) 466 TOTAL SCORE: 5371 Bonus ------- High Alert Combat Kills 452 Follower Combat Kills 14 Cogmind --------- Core Integrity 0/400 Matter 289/300 Energy 160/160 System Corruption 0% Temperature Cool (29) Movement Walking (190) Ox1 Location -9/Storage Parts ------- > --- POWER (1) -------- Light Nuclear Core > --- PROPULSION (3) --- Aluminum Leg Aluminum Leg Aluminum Leg > --- UTILITY (3) ------ Large Storage Unit Targeting Computer Medium Armor Plating > --- WEAPON (2) ------- Beam Rifle Light Assault Rifle > --- INVENTORY (15) --- Cooled Ion Engine Light Nuclear Core Aluminum Leg Aluminum Leg Aluminum Leg Medium Storage Unit Compact Matter Pod (150) Signal Interpreter Targeting Computer Medium Armor Plating Medium Armor Plating Rocket Launcher Rocket Launcher Peak State ------------ > --- POWER ------------ Cooled Ion Engine > --- PROPULSION ------- Aluminum Leg Aluminum Leg Improved Aluminum Leg > --- UTILITY ---------- Medium Storage Unit Targeting Computer Propulsion Shielding > --- WEAPON ----------- Improved Assault Rifle Improved Assault Rifle > --- INVENTORY -------- Cooled Ion Engine Compact Matter Pod Signal Interpreter Targeting Computer Hardened Light Armor Plating Hardened Light Armor Plating Hardened Light Armor Plating Autogun Rocket Launcher Rocket Launcher [Rating: 18] Favorites ----------- Power Cooled Ion Engine Engine Cooled Ion Engine Power Core Light Nuclear Core Propulsion Aluminum Leg Leg Aluminum Leg Utility Targeting Computer Storage Small Storage Unit Processor Targeting Computer Protection Propulsion Shielding Weapon Improved Assault Rifle Energy Gun Beam Rifle Ballistic Gun Improved Assault Rifle Ballistic Cannon Light Cannon Launcher Grenade Launcher Build | -11 -10 -10 -9 -9 ------- Run | Yrd Mat Min Mat Sto Slots Evolved 2 | . . . 2 . Power . | . . . . . Propulsion 1 | . . . 1 . Utility 1 | . . . 1 . Weapon . | . . . . . Parts Attached 79 | 6 17 6 29 21 Power 9 | 1 4 . 3 1 Engine 4 | 1 1 . 2 . Core 5 | . 3 . 1 1 Reactor . | . . . . . Propulsion 23 | 2 6 . 6 9 Treads . | . . . . . Leg 23 | 2 6 . 6 9 Wheel . | . . . . . Hover . | . . . . . Flight . | . . . . . Utility 10 | 1 1 . 5 3 Device . | . . . . . Storage 4 | 1 . . 3 . Processor 1 | . 1 . . . Hackware . | . . . . . Protection 5 | . . . 2 3 Artifact . | . . . . . Weapon 37 | 2 6 6 15 8 Energy Gun 2 | . . . . 2 Energy Cannon . | . . . . . Ballistic Gun 17 | 2 4 . 7 4 Ballistic Cannon 8 | . 2 2 4 . Launcher 10 | . . 4 4 2 Special Weapon . | . . . . . Impact Weapon . | . . . . . Slashing Weapon . | . . . . . Piercing Weapon . | . . . . . Special Melee Weapon . | . . . . . Unidentified Prototypes . | . . . . . Parts Lost 12 | . . . 5 7 Power 3 | . . . 2 1 Propulsion 4 | . . . 2 2 Utility 2 | . . . 1 1 Weapon 3 | . . . . 3 Highest Loss Streak 2 | . . . 1 2 To Critical Strikes . | . . . . . Average Slot Usage (%) 97 | . 98 100 94 98 Engine 7 | . 5 . 9 10 Core 4 | . 8 14 1 . Leg 29 | . 27 28 28 32 Storage 12 | . 14 14 11 11 Processor 11 | . 13 14 11 11 Protection 7 | . . . 10 11 Energy Gun 1 | . . . . 4 Ballistic Gun 13 | . 23 . 12 14 Ballistic Cannon 6 | . 4 15 8 . Launcher 2 | . . 12 . 1 Peak Build Rating 18 | 6 9 10 18 18 Average Rating 12 | 4 8 9 14 16 On Entrance 8 | . 6 9 10 18 Naked Turns . | . . . . . Heaviest Build 43 | 11 16 16 39 43 Greatest Support 33 | 20 20 20 33 30 Greatest Overweight (x) 2 | 1 1 . 1 2 Average Overweight (x) . | . . . . 1 Largest Inventory Capacity 15 | 8 8 8 15 15 Average Capacity 10 | 6 8 8 10 15 Most Carried 15 | 3 8 8 12 15 Average Carried 9 | 1 7 7 9 13 Final Capacity 15 | 8 8 8 15 15 Final Carried 13 | 3 8 8 12 13 Class Distribution -------------------- 91% | Mutant 8% | Scavenger-Mutant Dominant Class ---------------- Mutant | -10/Materials Mutant | -10/Mines Mutant | -9/Materials Mutant | -9/Storage Resources | -11 -10 -10 -9 -9 ----------- Run | Yrd Mat Min Mat Sto Matter Collected 2835 | 243 402 193 1126 871 Remotely . | . . . . . Salvage Created 3813 | . 553 135 1534 1591 Parts 251 | . 40 16 106 89 Haulers Intercepted 7 | . 1 . 4 2 Recyclers Shooed 4 | . 1 . 2 1 Parts Field Recycled . | . . . . . Retrieved Matter . | . . . . . Parts Self-Destructed . | . . . . . Prevented . | . . . . . Kills | -11 -10 -10 -9 -9 ------- Run | Yrd Mat Min Mat Sto Combat Hostiles Destroyed 90 | . 13 9 41 27 Guns 51 | . 13 . 14 24 Cannons 19 | . . 4 15 . AOE 20 | . . 5 12 3 Classes Destroyed 12 | . 6 . 6 . Worker 3 | . 1 . 1 1 Builder 2 | . . . 1 1 Hauler 7 | . 1 . 4 2 Recycler 10 | . 1 . 3 6 Operator 1 | . . . 1 . Watcher 5 | . 1 . 3 1 Swarmer 30 | . 6 7 14 3 Grunt 36 | . 7 2 13 14 Brawler 1 | . . . 1 . Duelist 3 | . . . 3 . Protector 2 | . . . 2 . Sentry 18 | . . . 8 10 Best Kill Streak 11 | . 3 5 11 6 Combat Bots Only 9 | . 3 5 9 4 Max Kills in Single Turn 5 | . 1 4 5 2 Gunslinging . | . . . . . Exploded 4 | . . 4 3 1 Melee . | . . . . . Uniques/NPCs Destroyed . | . . . . . Combat | -11 -10 -10 -9 -9 -------- Run | Yrd Mat Min Mat Sto Hostile Shots Fired 324 | . 49 15 127 133 Missed 88 | . 14 2 44 28 Damage Taken 2971 | . 410 97 1109 1355 Core 538 | . 96 40 224 178 Absorbed by Shields . | . . . . . Redirected to Shielding 53 | . . . 53 . Regen/Repaired (Parts) 149 | . 46 . . 103 Core Remaining (%) 72 | 100 . 45 . . Volleys Fired 263 | . 50 8 102 103 Largest 2 | . 2 2 2 2 Hottest 79 | . 40 70 70 79 Shots Fired 495 | . 100 16 200 179 Gun 359 | . 100 . 94 165 Cannon 106 | . . 10 96 . Launcher 30 | . . 6 10 14 Special . | . . . . . Kinetic 448 | . 100 10 190 148 Thermal 17 | . . . . 17 Explosive 30 | . . 6 10 14 Electromagnetic . | . . . . . Robot Hit Streak 23 | . 7 3 12 23 Robot Miss Streak 5 | . 4 2 5 2 Penetration Max . | . . . . . Secondary Targets 2 | . 1 . . 1 Max Gunslinging Chain 1 | . 1 . . 1 Shots Hit Robots 331 | . 67 6 126 132 Core Hits 189 | . 39 12 76 62 Critical Kills 1 | . 1 . . . Critical Parts Destroyed 1 | . . . . 1 Critical Strikes 4 | . 1 . 1 2 Burn 1 | . . . . 1 Destroy 2 | . 1 . . 1 Blast 1 | . . . 1 . Melee Attacks . | . . . . . Impact . | . . . . . Slashing . | . . . . . Piercing . | . . . . . Sneak Attacks . | . . . . . Combat Hostiles . | . . . . . Follow-up Attacks . | . . . . . Damage Inflicted 7189 | . 671 287 3797 2434 Guns 3710 | . 616 . 1087 2007 Cannons 1040 | . . 93 947 . Explosions 2411 | . 46 194 1744 427 Melee . | . . . . . Ramming 28 | . 9 . 19 . Kinetic 4570 | . 616 93 2034 1827 Thermal 180 | . . . . 180 Explosive 2365 | . . 194 1744 427 Electromagnetic 46 | . 46 . . . Impact . | . . . . . Slashing . | . . . . . Piercing . | . . . . . Highest Corruption . | . . . . . Average Corruption . | . . . . . Corruption Purged . | . . . . . Corruption Blocked . | . . . . . Overload Shots . | . . . . . Overflow Damage 60 | . . . 60 . Projectiles 28 | . . . 28 . Explosions 32 | . . . 32 . Melee . | . . . . . Knockbacks 7 | . . . 7 . Impact . | . . . . . Kinetic 5 | . . . 5 . Secondary 2 | . . . 2 . Self-Inflicted Damage . | . . . . . Shots . | . . . . . Rammed . | . . . . . Targets Rammed 9 | . 3 . 6 . Kicked 9 | . 3 . 6 . Crushed . | . . . . . Highest Temperature 158 | . 64 60 36 158 Average Temperature 24 | . 18 21 10 39 Received Heat Transfer 1191 | . 201 12 315 663 Siege Activations . | . . . . . Robots Corrupted . | . . . . . Combat Hostiles . | . . . . . Parts Fried 1 | . . . 1 . Impact Corruptions 1 | . . . 1 . Robots Melted . | . . . . . Combat Hostiles . | . . . . . Parts Melted 1 | . . . . 1 Heat Transferred 518 | . . . . 518 Parts Sabotaged . | . . . . . Parts Stolen . | . . . . . Parts Stripped . | . . . . . Power Chain Reactions . | . . . . . Alert | -11 -10 -10 -9 -9 ------- Run | Yrd Mat Min Mat Sto Peak Influence 907 | . 301 358 907 728 Initial 382 | . . 55 40 382 Average 329 | . 163 176 397 458 Maximum Alert Level 3 | . 1 1 3 3 Low Security (%) 33 | 100 72 61 23 . Level 1 29 | . 27 38 21 40 Level 2 32 | . . . 51 49 Level 3 3 | . . . 3 9 Level 4 . | . . . . . Level 5 . | . . . . . High Security . | . . . . . Max Security . | . . . . . Squads Dispatched 10 | . 1 . 5 4 Investigation 1 | . 1 . . . Extermination . | . . . . . Reinforcement 5 | . . . 2 3 Assault 3 | . . . 3 . Garrison 1 | . . . . 1 Intercept . | . . . . . Searches Triggered . | . . . . . Construction Impeded 1 | . . . . 1 Haulers Reinforced . | . . . . . Active Scanning Responses . | . . . . . Cargo Convoy Interrupts . | . . . . . Stealth | -11 -10 -10 -9 -9 --------- Run | Yrd Mat Min Mat Sto Distress Signals 11 | . 1 . 6 4 Communications Jammed . | . . . . . Distress Signals . | . . . . . Times Spotted 131 | . 24 13 62 32 Peak Tracking Total 12 | . 4 12 7 6 Tactical Retreats 6 | . 1 . 5 . Traps | -11 -10 -10 -9 -9 ------- Run | Yrd Mat Min Mat Sto Traps Triggered 3 | . 3 . . . Indirectly . | . . . . . Trap Hack Attempts . | . . . . . Triggered . | . . . . . Disarmed . | . . . . . Reprogrammed . | . . . . . Reused . | . . . . . Traps Extracted . | . . . . . Installed . | . . . . . Triggered . | . . . . . Machines | -11 -10 -10 -9 -9 ---------- Run | Yrd Mat Min Mat Sto Machines Disabled 10 | . 1 1 5 3 Max in Single Turn 2 | . 1 1 2 2 Garrison Access 1 | . . . . 1 Machines Repaired . | . . . . . Machines Dismantled . | . . . . . Machines Sabotaged . | . . . . . Overloaded Fab Kills . | . . . . . Hacking | -11 -10 -10 -9 -9 --------- Run | Yrd Mat Min Mat Sto Machines Accessed 21 | . 7 . 9 5 Terminals 14 | . 6 . 5 3 Fabricators . | . . . . . Repair Stations 3 | . 1 . 1 1 Recycling Units 1 | . . . 1 . Scanalyzers 2 | . . . 2 . Garrison Access 1 | . . . . 1 Total Hacks 57 | . 20 . 24 13 Successful 35 | . 11 . 15 9 Failed 22 | . 9 . 9 4 Catastrophic 2 | . . . 1 1 Database Lockouts . | . . . . . Manual 30 | . 11 . 11 8 Terminals 36 | . 18 . 11 7 Fabricators . | . . . . . Repair Stations 10 | . 2 . 3 5 Recycling Units 1 | . . . 1 . Scanalyzers 9 | . . . 9 . Garrison Access 1 | . . . . 1 Terminal Hacks 14 | . 7 . 4 3 Robot Analysis 4 | . 3 . 1 . Prototype ID Bank 2 | . 2 . . . Open Door 1 | . . . . 1 Branch Access Points 1 | . . . 1 . Repair Station Index 1 | . . . 1 . Alert Level 1 | . . . . 1 Unreport Threat 1 | . . . . 1 Locate Traps 1 | . 1 . . . Hauler Manifests 2 | . 1 . 1 . Fabricator Hacks . | . . . . . Repair Station Hacks 6 | . 2 . . 4 Scan Component 3 | . 1 . . 2 Repair 3 | . 1 . . 2 Recycling Unit Hacks 1 | . . . 1 . Retrieve Components 1 | . . . 1 . Scanalyzer 8 | . . . 8 . Insert Component 4 | . . . 4 . Analyze 4 | . . . 4 . Garrison Access Hacks 1 | . . . . 1 Seal Access 1 | . . . . 1 Unauthorized Hacks 5 | . 2 . 2 1 Terminals 5 | . 2 . 2 1 Botnet 5 | . 2 . 2 1 Fabricators . | . . . . . Repair Stations . | . . . . . Recycling Units . | . . . . . Scanalyzers . | . . . . . Garrison Access . | . . . . . Data Cores Recovered . | . . . . . Used . | . . . . . Hacking Detections 17 | . 6 . 8 3 Full Trace Events . | . . . . . Feedback Events . | . . . . . Feedback Blocked . | . . . . . Robot Schematics Acquired . | . . . . . Robots Built . | . . . . . Authchips . | . . . . . Time . | . . . . . Total Robot Build Rating . | . . . . . Part Schematics Acquired 4 | . . . 4 . Parts Built . | . . . . . Authchips . | . . . . . Time . | . . . . . Total Part Build Rating . | . . . . . Parts Repaired 3 | . 1 . . 2 Time 115 | . 26 . . 89 Parts Recycled . | . . . . . Recycled Matter . | . . . . . Retrieved Matter . | . . . . . Retrieved Components 10 | . . . 10 . Parts Scanalyzed 4 | . . . 4 . Part Schematics Acquired 4 | . . . 4 . Parts Damaged 1 | . . . 1 . Bothacking | -11 -10 -10 -9 -9 ------------ Run | Yrd Mat Min Mat Sto Used RIF Installer . | . . . . . Robots Hacked . | . . . . . Non-combat . | . . . . . Combat . | . . . . . Robot Hacks Applied . | . . . . . Relay Couplers Released . | . . . . . Fabnet Peak Effective % . | . . . . . Robots Rewired . | . . . . . Allies Hacked . | . . . . . Hacks Repelled . | . . . . . Allies | -11 -10 -10 -9 -9 -------- Run | Yrd Mat Min Mat Sto Total Allies 3 | . . 3 . . Largest Group 3 | . . 3 . . Highest-Rated Group 40 | . . 40 . . Highest-Rated Ally 16 | . . 16 . . Total Orders . | . . . . . Ally Attacks 9 | . . 9 . . Total Damage 60 | . . 60 . . Kills 2 | . . 2 . . Allies Corrupted . | . . . . . Allies Melted . | . . . . . Intel | -11 -10 -10 -9 -9 ------- Run | Yrd Mat Min Mat Sto Robot Analysis Total 4 | . 3 . 1 . Derelict Logs Recovered 2 | . . 2 . . Drone Launches . | . . . . . Drone Recoveries . | . . . . . Exploration | -11 -10 -10 -9 -9 ------------- Run | Yrd Mat Min Mat Sto Turns Passed 5370 | 49 1090 772 2101 1358 Spaces Moved 2633 | 36 666 376 1083 472 Core 8 | 8 . . . . Treads . | . . . . . Legs 2625 | 28 666 376 1083 472 Wheels . | . . . . . Hover . | . . . . . Flight . | . . . . . Fastest Speed 50 | 50 120 120 120 190 Average Speed 143 | 105 120 120 147 190 Slowest Speed 260 | 120 190 120 190 260 Overloaded Moves . | . . . . . Propulsion Burnouts . | . . . . . Robots Hopped . | . . . . . Cave-ins Triggered . | . . . . . Exploration Rate (%) 69 | 3 99 87 84 76 Regions Visited 4 Branch Regions 2 Pre-discovered Areas 1 | . . 1 . . Known Exits Taken 1 | . . . 1 . Unknown Exits Taken 3 | 1 1 1 . . Scrap Searched 1 | . . 1 . . Spaces Dug 12 | . . 12 . . Terrain Destroyed 219 | . . 37 120 62 Melee . | . . . . . Projectile . | . . . . . AOE 219 | . . 37 120 62 Terrain Rammed . | . . . . . Walls Destroyed . | . . . . . Machines Disabled . | . . . . . Actions | -11 -10 -10 -9 -9 --------- Run | Yrd Mat Min Mat Sto Total 3743 | 44 875 678 1388 758 Wait 699 | . 112 287 148 152 Move 2629 | 35 665 375 1082 472 Hop . | . . . . . Pick Up 29 | 3 11 1 10 4 Fast Attach 24 | 6 8 . 7 3 Attach 10 | . . . 5 5 Detach 1 | . . . 1 . Swap 45 | . 9 6 17 13 Drop 34 | . 17 1 10 6 Fire 263 | . 50 8 102 103 Melee . | . . . . . Ram . | . . . . . Kick 9 | . 3 . 6 . Crush . | . . . . . Escape Stasis . | . . . . . Rewire . | . . . . . Trap . | . . . . . Miscellaneous . | . . . . . Route ------- -11/Scrapyard -10/Materials (discovered 5 exits: *Mat x3 / [*Min x2]) -10/Mines (discovered 3 exits: *Mat x2 / [*Exi]) -9/Materials (discovered 5 exits: [*Mat x2] / *Min x2 / *Sto) -9/Storage History --------- Turn | Location | Event 8 | -11/Scrapyard | Discovered new exit (range 16) 50 | -11/Scrapyard | Entered Materials 200 | -10/Materials | Discovered new exit (range 16) 300 | -10/Materials | Build established: Mutant 362 | -10/Materials | Discovered new exit (range 3) 513 | -10/Materials | Discovered new exit (range 11) 766 | -10/Materials | Discovered new exit (range 5) 908 | -10/Materials | Repaired Aluminum Leg 996 | -10/Materials | Discovered new exit (range 14) 1140 | -10/Materials | Entered Mines 1238 | -10/Mines | Core integrity fell below 50% 1309 | -10/Mines | Deemed a non-threat by the Exiles lab entrance 1309 | -10/Mines | Discovered new exit (range 5) 1361 | -10/Mines | Assisted by bots powering up and referring to "LRC-V3" 1468 | -10/Mines | Learned location of Mines (-9) 1486 | -10/Mines | Learned Materials trap positions 1490 | -10/Mines | Discovered new exit (range 9) 1543 | -10/Mines | Discovered new exit (range 8) 1563 | -10/Mines | Assembled infested the area 1596 | -10/Mines | Lost 3 allies 1912 | -10/Mines | Entered Materials 1912 | -9/Materials | Evolved 2 slots: Propulsion x1, Utility x1 1913 | -9/Materials | Loaded intel: 21 trap records 2421 | -9/Materials | Identified exit to Mines 2421 | -9/Materials | Identified exit to Storage 3425 | -9/Materials | Discovered new exit (range 14) 3512 | -9/Materials | First assault squad dispatched 3969 | -9/Materials | Destroyed 9 combat bots 3992 | -9/Materials | Discovered new exit (range 8) 4002 | -9/Materials | Core integrity fell below 50% 4013 | -9/Materials | Entered Storage 4412 | -9/Storage | Repaired Imp. Assault Rifle 4451 | -9/Storage | Repaired Lgt. Nuclear Core 4653 | -9/Storage | Core integrity fell below 20% 4933 | -9/Storage | Garrison activated, responded to threat 5371 | -9/Storage | Destroyed by Y-45 Defender with Heavy Assault Rifle Last Messages --------------- 05228_ ALERT: Hostiles spotted, dispatching reinforcements to Terminal S002. 05248_ Y-45 Defender destroyed. 05253_ Acquired 22 matter. 05253_ U-05 Engineer builds a Door. 05263_ K-01 Serf collects debris. 05287_ K-01 Serf cleans the Storage Shell. 05298_ G-34 Mercenary destroyed. 05299_ K-01 Serf collects debris. 05301_ G-34 Mercenary suffers critical hit (Burn). 05302_ Autogun destroyed. 05302_ K-01 Serf cleans the Storage Shell. 05306_ Cld. Ion Engine destroyed. 05308_ G-34 Mercenary destroyed. 05309_ K-01 Serf collects debris. 05311_ Acquired 16 matter. 05312_ K-01 Serf collects debris. 05319_ K-01 Serf cleans the Storage Shell. 05364_ Acquired Lgt. Assault Rifle. Map ----- +----------------------------------------------------+ | | | | | | | | | | | | | | | | | | | | | | | | | | | | | | | | | | | | | | | | | | | ????????????????????????????????????????????? | | ???????????????????#########????????????????? | | ???????????????????# #????????????????? | | ???????????????????# | #????????????????? | | ????????????########@ #???####?????????? | | ????????????+ Y |+? ?????????? | | ????????????# # ! # +????????? | | ????????????# ######### ^#????????? | | ?????########+## ^#??????##? | | ?????# ?# ^#????### # | | ?????# # ###### | | ?????# # ! # | | ?????# /!!! # | | ?????# #!%!= """"" # | | ????# """ """ ###! """"" #!!! | | ?????? """ """???# """"" #!!! | | ???????""" """???# !!!#!! | | ????????#####????# ! !# " | | ?????????????????# """"" !! # " | | ?????????????????#% """"" !==! ! # " | | ???????????#######+## """""*% %= # | | ???????????# % # ! =[=* ####+ | | ???????????# """ %# ! = !!%[% ![% | | ???????????# "?"""" #%##+##+###" "# = [ | | ???????????# "????" # ## #"R"# | | ???????????# "????"%+ %/ #"""# ####+ | | ???????????# """"?"%#### """########### ! | | ???????????# """ #??# """#????????# [%"" | | ???????????# [%!#??#% """#????????## !"" | +----------------------------------------------------+ Best States ------------- Heat Dissipation 28 Energy Generation 14 Energy Capacity 280 Matter Stores 300 Matter Capacity 300 Sight Range 16 Terrain Scan Density 10 Armor Coverage 225 Propulsion Shielding 33 Evasion (%) 55 Targeting Accuracy 5 Item Schematics ----------------- Cld. Ion Engine | -9/Materials | Scanalyzed Rocket Launcher | -9/Materials | Scanalyzed Hrd. Light Armor Plating | -9/Materials | Scanalyzed Autogun | -9/Materials | Scanalyzed Robot Schematics ------------------ None Fabricated ------------ Nothing Alien Tech Used ----------------- None Achievements -------------- None Challenges ------------ None Game ------ Seed ReactiveNavigationRefractor Manual? 0 Play Time 00:54:12 Cumulative 69.2 hours Start 2024.09.06 @ 11:07:09 End 2024.09.06 @ 11:59:00 Sessions 1 Manual Loads 0 Difficulty Rogue Special Mode None Game No. 32 Rogue 32 Adventurer 0 Explorer 0 Win Type - Total 2 Types 2/0/0/0/0/0/0/0/0 Lore% 29 Gallery% 37 Achievement% 36 Wizard Run 0 Options --------- Layout 1 ASCII 0 Keyboard 0 Movement Vi Keybinds 0 Fullscreen 1 Font 24/Smallcaps Map View 50x35 Zoom Use 0% Tactical HUD 1 Map Filters NONE Filters NONE Steam 1 RUN: 8a956785-1566-4f5e-b334-a0d8fa194074